[Event "*** Titled Tuesday 3|2 Blitz (Early)"]
[Site "Chess.com"]
[Date "2016.12.06"]
[Round "5"]
[White "Saitama_Hero"]
[Black "AdrianaNikolova"]
[Result "0-1"]
[WhiteElo "2147"]
[BlackElo "2256"]
[TimeControl "180+2"]
[EndTime "12:02:27 PST"]
[Termination "AdrianaNikolova won by checkmate"]

1. d4 {[%clk 0:03:02]} 1... d5 {[%clk 0:03:00]} 2. c4 {[%clk 0:03:02.2]} 2... c6
{[%clk 0:03:01]} 3. Nc3 {[%clk 0:02:57.8]} 3... Nf6 {[%clk 0:03:01.3]} 4. cxd5
{[%clk 0:02:57.8]} 4... cxd5 {[%clk 0:03:02.2]} 5. f3 {[%clk 0:02:59]} 5... Nc6
{[%clk 0:02:58.6]} 6. e4 {[%clk 0:02:59.2]} 6... e6 {[%clk 0:02:19.7]} 7. e5
{[%clk 0:02:57.4]} 7... Ng8 {[%clk 0:02:20.5]} 8. f4 {[%clk 0:02:58.2]} 8...
Nge7 {[%clk 0:02:21.4]} 9. Nf3 {[%clk 0:02:58.1]} 9... Nf5 {[%clk 0:02:22.8]}
10. Bd3 {[%clk 0:02:53.5]} 10... Nfxd4 {[%clk 0:02:17.6]} 11. Nxd4 {[%clk
0:02:54]} 11... Nxd4 {[%clk 0:02:19.5]} 12. Qa4+ {[%clk 0:02:53.2]} 12... Nc6
{[%clk 0:02:20.2]} 13. O-O {[%clk 0:02:49.9]} 13... Bd7 {[%clk 0:02:16.5]} 14.
Qd1 {[%clk 0:02:32.5]} 14... Bc5+ {[%clk 0:02:09.5]} 15. Kh1 {[%clk 0:02:33]}
15... O-O {[%clk 0:02:11.1]} 16. Qh5 {[%clk 0:02:21.6]} 16... g6 {[%clk
0:02:11.7]} 17. Qh6 {[%clk 0:02:21.7]} 17... f6 {[%clk 0:02:04.9]} 18. Bxg6
{[%clk 0:02:18.1]} 18... Qe7 {[%clk 0:01:45.5]} 19. exf6 {[%clk 0:02:04]} 19...
Rxf6 {[%clk 0:01:47.4]} 20. Bxh7+ {[%clk 0:02:04]} 20... Qxh7 {[%clk 0:01:21.8]}
21. Qxf6 {[%clk 0:02:04.3]} 21... Be7 {[%clk 0:01:01.4]} 22. Nxd5 {[%clk
0:01:45.4]} 22... exd5 {[%clk 0:01:02.5]} 23. Qc3 {[%clk 0:01:44.1]} 23... Rf8
{[%clk 0:00:53.9]} 24. Bd2 {[%clk 0:01:39.5]} 24... d4 {[%clk 0:00:54.3]} 25.
Qb3+ {[%clk 0:01:36]} 25... Rf7 {[%clk 0:00:48.1]} 26. Qxb7 {[%clk 0:01:34.3]}
26... Qf5 {[%clk 0:00:44.1]} 27. Qb3 {[%clk 0:01:21]} 27... Kf8 {[%clk
0:00:39.4]} 28. Rae1 {[%clk 0:00:56.6]} 28... Rg7 {[%clk 0:00:38.8]} 29. Qc4
{[%clk 0:00:39.5]} 29... Bd6 {[%clk 0:00:32.3]} 30. Re5 {[%clk 0:00:32.6]} 30...
Qg4 {[%clk 0:00:21.6]} 31. Rg5 {[%clk 0:00:32.9]} 31... Qe6 {[%clk 0:00:13.2]}
32. Qd3 {[%clk 0:00:28.4]} 32... Rxg5 {[%clk 0:00:07.5]} 33. fxg5+ {[%clk
0:00:30.2]} 33... Ke8 {[%clk 0:00:09]} 34. g6 {[%clk 0:00:29.7]} 34... Bf8
{[%clk 0:00:09.9]} 35. Re1 {[%clk 0:00:28.4]} 35... Ne5 {[%clk 0:00:11.1]} 36.
Qxd4 {[%clk 0:00:28.9]} 36... Bg7 {[%clk 0:00:12.4]} 37. Bf4 {[%clk 0:00:27.3]}
37... Qxg6 {[%clk 0:00:13.6]} 38. Bxe5 {[%clk 0:00:27.1]} 38... Bxe5 {[%clk
0:00:11.4]} 39. Qxe5+ {[%clk 0:00:28.1]} 39... Kd8 {[%clk 0:00:09.2]} 40. Qb8+
{[%clk 0:00:29]} 40... Bc8 {[%clk 0:00:10.4]} 41. Rd1+ {[%clk 0:00:29.4]} 41...
Ke7 {[%clk 0:00:11.9]} 42. Qxc8 {[%clk 0:00:28.4]} 42... Qh5 {[%clk 0:00:13.3]}
43. Qd7+ {[%clk 0:00:26.7]} 43... Kf6 {[%clk 0:00:13.3]} 44. Qd6+ {[%clk
0:00:27.6]} 44... Kf7 {[%clk 0:00:13.9]} 45. Qc6 {[%clk 0:00:25.4]} 45... Qxd1#
{[%clk 0:00:11.5]} 0-1

[Event "*** Titled Tuesday 3|2 Blitz (Early)"]
[Site "Chess.com"]
[Date "2016.12.06"]
[Round "5"]
[White "Nachsueb"]
[Black "norwaytoadog"]
[Result "1-0"]
[WhiteElo "2087"]
[BlackElo "1918"]
[TimeControl "180+2"]
[EndTime "12:02:27 PST"]
[Termination "Nachsueb won by resignation"]

1. e4 {[%clk 0:03:02]} 1... e5 {[%clk 0:03:00.3]} 2. Nf3 {[%clk 0:03:03]} 2...
Nc6 {[%clk 0:03:01.2]} 3. Bb5 {[%clk 0:03:04]} 3... a6 {[%clk 0:03:02.2]} 4. Ba4
{[%clk 0:03:05.2]} 4... Nf6 {[%clk 0:03:03.2]} 5. O-O {[%clk 0:03:06.4]} 5...
Be7 {[%clk 0:03:04.1]} 6. Re1 {[%clk 0:03:07]} 6... b5 {[%clk 0:03:05.1]} 7. Bb3
{[%clk 0:03:08.3]} 7... d6 {[%clk 0:03:06.2]} 8. c3 {[%clk 0:03:08.6]} 8... O-O
{[%clk 0:03:07.2]} 9. h3 {[%clk 0:03:10]} 9... Bb7 {[%clk 0:03:08.1]} 10. d4
{[%clk 0:03:09.9]} 10... Re8 {[%clk 0:03:08.6]} 11. Ng5 {[%clk 0:03:08.3]} 11...
Rf8 {[%clk 0:03:08.3]} 12. Nf3 {[%clk 0:03:10]} 12... Re8 {[%clk 0:03:08.6]} 13.
Nbd2 {[%clk 0:03:08.7]} 13... exd4 {[%clk 0:03:05]} 14. cxd4 {[%clk 0:03:09.1]}
14... Nd7 {[%clk 0:03:03.7]} 15. Nf1 {[%clk 0:02:45.2]} 15... Na5 {[%clk
0:03:03.1]} 16. Bc2 {[%clk 0:02:44.9]} 16... Bf6 {[%clk 0:03:03.9]} 17. Ng3
{[%clk 0:02:44]} 17... g6 {[%clk 0:03:01.8]} 18. Bd2 {[%clk 0:02:21]} 18... Nc4
{[%clk 0:02:59.1]} 19. Bc3 {[%clk 0:02:17.9]} 19... c5 {[%clk 0:02:56.7]} 20. b3
{[%clk 0:01:59.6]} 20... Na3 {[%clk 0:02:36.4]} 21. Bd3 {[%clk 0:01:33.5]} 21...
b4 {[%clk 0:02:37]} 22. Bb2 {[%clk 0:01:34.2]} 22... Nb5 {[%clk 0:02:36.6]} 23.
Bc4 {[%clk 0:01:00.2]} 23... Nc3 {[%clk 0:02:00.4]} 24. Qd3 {[%clk 0:00:54.6]}
24... cxd4 {[%clk 0:01:59.4]} 25. Nxd4 {[%clk 0:00:54.3]} 25... Nc5 {[%clk
0:01:55.7]} 26. Qd2 {[%clk 0:00:21.2]} 26... N5xe4 {[%clk 0:01:50.9]} 27. Nxe4
{[%clk 0:00:21.6]} 27... Nxe4 {[%clk 0:01:51.6]} 28. Qxb4 {[%clk 0:00:22.6]}
28... Rb8 {[%clk 0:01:42.2]} 29. f3 {[%clk 0:00:12.3]} 29... Nc5 {[%clk
0:01:24.7]} 30. Qd2 {[%clk 0:00:12.6]} 30... Qb6 {[%clk 0:01:22.9]} 31. Kh1
{[%clk 0:00:13.3]} 31... d5 {[%clk 0:01:18.5]} 32. Bf1 {[%clk 0:00:13]} 32...
Qc7 {[%clk 0:01:14]} 33. Rac1 {[%clk 0:00:13.6]} 33... Rxe1 {[%clk 0:01:10.9]}
34. Rxe1 {[%clk 0:00:14.5]} 34... Qg3 {[%clk 0:01:05.4]} 35. Rc1 {[%clk
0:00:13.8]} 35... Nd7 {[%clk 0:01:03.7]} 36. Ne2 {[%clk 0:00:13.7]} 36... Qh4
{[%clk 0:00:58.5]} 37. Bxf6 {[%clk 0:00:15.1]} 37... Nxf6 {[%clk 0:00:56.4]} 38.
Qd4 {[%clk 0:00:15.9]} 38... Qg5 {[%clk 0:00:53.5]} 39. Rc7 {[%clk 0:00:15.4]}
39... Bc8 {[%clk 0:00:48.7]} 40. f4 {[%clk 0:00:12.9]} 40... Qf5 {[%clk
0:00:46.9]} 41. Nc3 {[%clk 0:00:13.7]} 41... Nh5 {[%clk 0:00:40]} 42. Nxd5
{[%clk 0:00:13.9]} 42... Ng3+ {[%clk 0:00:39]} 43. Kg1 {[%clk 0:00:15.1]} 43...
Nxf1 {[%clk 0:00:37]} 44. Ne7+ {[%clk 0:00:16.1]} 1-0

[Event "*** Titled Tuesday 3|2 Blitz (Early)"]
[Site "Chess.com"]
[Date "2016.12.06"]
[Round "5"]
[White "SCIM"]
[Black "poummba"]
[Result "1-0"]
[WhiteElo "2308"]
[BlackElo "2382"]
[TimeControl "180+2"]
[EndTime "12:02:28 PST"]
[Termination "SCIM won by resignation"]

1. e4 {[%clk 0:03:02]} 1... c6 {[%clk 0:03:01.1]} 2. d4 {[%clk 0:03:02.3]} 2...
d5 {[%clk 0:03:03]} 3. e5 {[%clk 0:03:03.6]} 3... c5 {[%clk 0:03:04.4]} 4. dxc5
{[%clk 0:03:03.3]} 4... e6 {[%clk 0:03:05.6]} 5. Nf3 {[%clk 0:03:04.4]} 5...
Bxc5 {[%clk 0:03:06.8]} 6. Bd3 {[%clk 0:03:05.8]} 6... f5 {[%clk 0:03:06.7]} 7.
exf6 {[%clk 0:03:01.7]} 7... Nxf6 {[%clk 0:03:06.9]} 8. O-O {[%clk 0:02:58.7]}
8... O-O {[%clk 0:03:08.2]} 9. Bg5 {[%clk 0:02:56.6]} 9... Nc6 {[%clk
0:02:56.1]} 10. Qe2 {[%clk 0:02:48.8]} 10... Qd6 {[%clk 0:02:39.4]} 11. Nc3
{[%clk 0:02:38.6]} 11... Ng4 {[%clk 0:02:40.5]} 12. g3 {[%clk 0:02:17.6]} 12...
e5 {[%clk 0:02:26.7]} 13. Nxd5 {[%clk 0:02:14.3]} 13... Be6 {[%clk 0:02:03.6]}
14. Nc3 {[%clk 0:01:56.6]} 14... Rxf3 {[%clk 0:01:58.7]} 15. Qxf3 {[%clk
0:01:53.8]} 15... Rf8 {[%clk 0:01:59.4]} 16. Qe4 {[%clk 0:01:29.9]} 16... g6
{[%clk 0:01:37.3]} 17. Be3 {[%clk 0:01:25.6]} 17... Nd4 {[%clk 0:01:33.8]} 18.
Nb5 {[%clk 0:01:09.1]} 18... Qd7 {[%clk 0:01:14.4]} 19. Nxd4 {[%clk 0:01:01.1]}
19... exd4 {[%clk 0:01:15.4]} 20. Bg5 {[%clk 0:00:50]} 20... Bd5 {[%clk
0:01:07]} 21. Qe2 {[%clk 0:00:48.5]} 21... Re8 {[%clk 0:00:59.6]} 22. Qd1 {[%clk
0:00:19.4]} 22... Ne5 {[%clk 0:00:59]} 23. f4 {[%clk 0:00:20.3]} 23... Qh3
{[%clk 0:01:00.1]} 24. Qd2 {[%clk 0:00:17.8]} 24... Nf3+ {[%clk 0:00:46]} 25.
Rxf3 {[%clk 0:00:18.6]} 25... Bxf3 {[%clk 0:00:47.9]} 26. Qf2 {[%clk 0:00:19.3]}
26... Bd5 {[%clk 0:00:44]} 27. a3 {[%clk 0:00:19.9]} 27... Re3 {[%clk
0:00:43.4]} 28. b4 {[%clk 0:00:19.3]} 28... Bb6 {[%clk 0:00:41.9]} 29. a4 {[%clk
0:00:20.5]} 29... a6 {[%clk 0:00:42.1]} 30. a5 {[%clk 0:00:21.1]} 30... Ba7
{[%clk 0:00:43.5]} 31. f5 {[%clk 0:00:18.2]} 31... Rf3 {[%clk 0:00:36.2]} 32.
Qe2 {[%clk 0:00:16.1]} 32... Re3 {[%clk 0:00:20.8]} 33. Bxe3 {[%clk 0:00:16.4]}
33... dxe3 {[%clk 0:00:22.3]} 34. Rf1 {[%clk 0:00:16.3]} 34... g5 {[%clk
0:00:21.2]} 35. Bc4 {[%clk 0:00:15]} 35... Bxc4 {[%clk 0:00:12.7]} 36. Qxc4+
{[%clk 0:00:15.5]} 36... Kf8 {[%clk 0:00:14.6]} 37. Qc8+ {[%clk 0:00:16.1]}
37... Kf7 {[%clk 0:00:14.3]} 38. Qxb7+ {[%clk 0:00:17.2]} 38... Kf6 {[%clk
0:00:15.9]} 39. Qxa7 {[%clk 0:00:17.2]} 39... e2 {[%clk 0:00:16]} 40. Qd4+
{[%clk 0:00:17.8]} 40... Kf7 {[%clk 0:00:16.3]} 41. Qd5+ {[%clk 0:00:18.5]}
41... Kf8 {[%clk 0:00:15.9]} 42. Qd6+ {[%clk 0:00:18.1]} 42... Kg7 {[%clk
0:00:14.9]} 43. Qe7+ {[%clk 0:00:15.8]} 43... Kh6 {[%clk 0:00:15.7]} 44. Qxe2
{[%clk 0:00:15.1]} 1-0

[Event "*** Titled Tuesday 3|2 Blitz (Early)"]
[Site "Chess.com"]
[Date "2016.12.06"]
[Round "5"]
[White "fireheart92"]
[Black "Ar4uha"]
[Result "0-1"]
[WhiteElo "2531"]
[BlackElo "2456"]
[TimeControl "180+2"]
[EndTime "12:02:29 PST"]
[Termination "Ar4uha won by resignation"]

1. e4 {[%clk 0:03:01.9]} 1... e5 {[%clk 0:03:00.3]} 2. Nf3 {[%clk 0:03:01.8]}
2... d6 {[%clk 0:03:01.8]} 3. d4 {[%clk 0:03:02]} 3... exd4 {[%clk 0:03:03.7]}
4. Nxd4 {[%clk 0:03:03.9]} 4... Nf6 {[%clk 0:03:05.3]} 5. Nc3 {[%clk 0:03:05.1]}
5... Be7 {[%clk 0:03:06.9]} 6. g3 {[%clk 0:03:05.8]} 6... Nc6 {[%clk 0:03:06.3]}
7. Bg2 {[%clk 0:03:05.1]} 7... Bg4 {[%clk 0:03:07]} 8. Nde2 {[%clk 0:02:59.6]}
8... Ne5 {[%clk 0:03:04.4]} 9. h3 {[%clk 0:03:00.3]} 9... Bf3 {[%clk 0:03:05.9]}
10. O-O {[%clk 0:03:00.3]} 10... Bxg2 {[%clk 0:02:54]} 11. Kxg2 {[%clk
0:03:02.2]} 11... O-O {[%clk 0:02:55]} 12. f4 {[%clk 0:02:58.2]} 12... Ned7
{[%clk 0:02:46.9]} 13. g4 {[%clk 0:02:59.1]} 13... Nc5 {[%clk 0:02:29]} 14. Ng3
{[%clk 0:02:59.9]} 14... c6 {[%clk 0:02:30.6]} 15. g5 {[%clk 0:02:52.9]} 15...
Nfd7 {[%clk 0:02:27.8]} 16. Nf5 {[%clk 0:02:52]} 16... Re8 {[%clk 0:02:23.6]}
17. b4 {[%clk 0:02:34.2]} 17... Na6 {[%clk 0:02:15.2]} 18. Bb2 {[%clk 0:02:35]}
18... Bf8 {[%clk 0:02:09.7]} 19. a3 {[%clk 0:02:16.7]} 19... Nb6 {[%clk
0:02:10.7]} 20. Qd3 {[%clk 0:02:04.6]} 20... d5 {[%clk 0:02:01.9]} 21. exd5
{[%clk 0:02:03.8]} 21... cxd5 {[%clk 0:02:03.8]} 22. Rad1 {[%clk 0:02:03.7]}
22... Rc8 {[%clk 0:01:51.4]} 23. Rf2 {[%clk 0:02:03.8]} 23... Nc7 {[%clk
0:01:37.8]} 24. Ba1 {[%clk 0:01:22.1]} 24... Qd7 {[%clk 0:01:36.3]} 25. Ne2
{[%clk 0:01:19]} 25... Nc4 {[%clk 0:01:34.1]} 26. Neg3 {[%clk 0:00:50]} 26...
Ne6 {[%clk 0:01:33]} 27. Nh5 {[%clk 0:00:50.6]} 27... Kh8 {[%clk 0:01:02.1]} 28.
Kh1 {[%clk 0:00:21.8]} 28... Rcd8 {[%clk 0:00:51.8]} 29. Re2 {[%clk 0:00:17.2]}
29... Nd6 {[%clk 0:00:46.7]} 30. Nxd6 {[%clk 0:00:13.1]} 30... Qxd6 {[%clk
0:00:44]} 31. Rde1 {[%clk 0:00:14.4]} 31... Qc6 {[%clk 0:00:37]} 32. Qf5 {[%clk
0:00:15.2]} 32... Kg8 {[%clk 0:00:27.2]} 33. Rg2 {[%clk 0:00:14.3]} 33... Nd4
{[%clk 0:00:23.3]} 34. Nf6+ {[%clk 0:00:11.4]} 34... Qxf6 {[%clk 0:00:24.6]} 35.
Qxf6 {[%clk 0:00:05.2]} 35... Rxe1+ {[%clk 0:00:25.8]} 36. Kh2 {[%clk
0:00:06.9]} 36... gxf6 {[%clk 0:00:18.9]} 37. gxf6+ {[%clk 0:00:08.8]} 37... Kh8
{[%clk 0:00:20.1]} 38. Bxd4 {[%clk 0:00:10.7]} 38... Bh6 {[%clk 0:00:20.8]} 39.
Rf2 {[%clk 0:00:09.1]} 39... Rg8 {[%clk 0:00:21.5]} 40. Be5 {[%clk 0:00:09.1]}
40... Re8 {[%clk 0:00:21.7]} 41. Kg2 {[%clk 0:00:09.1]} 41... R8xe5 {[%clk
0:00:22.1]} 42. fxe5 {[%clk 0:00:11]} 42... Rxe5 {[%clk 0:00:23.8]} 43. Kg3
{[%clk 0:00:11.8]} 43... Rg5+ {[%clk 0:00:24.3]} 44. Kf3 {[%clk 0:00:12.8]}
44... Rf5+ {[%clk 0:00:25.4]} 45. Ke2 {[%clk 0:00:14.3]} 45... Rxf2+ {[%clk
0:00:27.3]} 46. Kxf2 {[%clk 0:00:15.9]} 46... Bg5 {[%clk 0:00:29.2]} 47. Kf3
{[%clk 0:00:17.3]} 47... Bxf6 {[%clk 0:00:30.8]} 48. Kf4 {[%clk 0:00:18.6]}
48... Bb2 {[%clk 0:00:32.4]} 0-1

[Event "*** Titled Tuesday 3|2 Blitz (Early)"]
[Site "Chess.com"]
[Date "2016.12.06"]
[Round "5"]
[White "LPSupi"]
[Black "nihalsarin"]
[Result "0-1"]
[WhiteElo "2585"]
[BlackElo "2509"]
[TimeControl "180+2"]
[EndTime "12:02:45 PST"]
[Termination "nihalsarin won on time"]

1. c4 {[%clk 0:03:00.8]} 1... c5 {[%clk 0:02:56.7]} 2. Nc3 {[%clk 0:03:01.9]}
2... Nc6 {[%clk 0:02:57.9]} 3. g3 {[%clk 0:03:01.9]} 3... g6 {[%clk 0:02:58.2]}
4. Bg2 {[%clk 0:03:02.9]} 4... Bg7 {[%clk 0:02:59.7]} 5. Nf3 {[%clk 0:03:04.1]}
5... e6 {[%clk 0:03:00.9]} 6. O-O {[%clk 0:03:04.7]} 6... Nge7 {[%clk
0:03:02.2]} 7. d3 {[%clk 0:03:06.3]} 7... O-O {[%clk 0:03:01.5]} 8. Bg5 {[%clk
0:03:05.9]} 8... d6 {[%clk 0:03:01.2]} 9. a3 {[%clk 0:02:55.1]} 9... h6 {[%clk
0:03:00.2]} 10. Bd2 {[%clk 0:02:55.3]} 10... Rb8 {[%clk 0:03:01]} 11. Rb1 {[%clk
0:02:55.3]} 11... b6 {[%clk 0:03:01.2]} 12. b4 {[%clk 0:02:54.1]} 12... Bb7
{[%clk 0:03:02.3]} 13. Qc1 {[%clk 0:02:40.7]} 13... Kh7 {[%clk 0:02:59.7]} 14.
Nb5 {[%clk 0:02:41.4]} 14... Qd7 {[%clk 0:02:55.7]} 15. Bc3 {[%clk 0:02:40.7]}
15... e5 {[%clk 0:02:48.3]} 16. bxc5 {[%clk 0:02:18.5]} 16... dxc5 {[%clk
0:02:43.5]} 17. Ba1 {[%clk 0:01:48.2]} 17... Nd4 {[%clk 0:02:27.3]} 18. Re1
{[%clk 0:01:34.3]} 18... Nxf3+ {[%clk 0:02:01.2]} 19. exf3 {[%clk 0:01:34.6]}
19... Qxd3 {[%clk 0:01:55.6]} 20. Bxe5 {[%clk 0:01:33]} 20... Bxe5 {[%clk
0:01:55.2]} 21. Rxe5 {[%clk 0:01:33.7]} 21... Nc6 {[%clk 0:01:55.9]} 22. Re3
{[%clk 0:00:56.2]} 22... Qd7 {[%clk 0:01:55.1]} 23. h4 {[%clk 0:00:46.9]} 23...
h5 {[%clk 0:01:47.1]} 24. Rb2 {[%clk 0:00:41.8]} 24... Nd4 {[%clk 0:01:21.7]}
25. Nxd4 {[%clk 0:00:39.2]} 25... cxd4 {[%clk 0:00:55.9]} 26. Rd3 {[%clk
0:00:39.1]} 26... Rfd8 {[%clk 0:00:56.5]} 27. Qf4 {[%clk 0:00:31]} 27... Rbc8
{[%clk 0:00:55.8]} 28. Bh3 {[%clk 0:00:15.9]} 28... Qxh3 {[%clk 0:00:24.8]} 29.
Qxf7+ {[%clk 0:00:16.2]} 29... Kh6 {[%clk 0:00:25.7]} 30. Qxb7 {[%clk
0:00:16.9]} 30... Rxc4 {[%clk 0:00:26.4]} 31. Rb1 {[%clk 0:00:15.3]} 31... Rdc8
{[%clk 0:00:18.3]} 32. Rbd1 {[%clk 0:00:16.3]} 32... Re8 {[%clk 0:00:16.3]} 33.
Qf7 {[%clk 0:00:15.8]} 33... Qe6 {[%clk 0:00:11.1]} 34. Qf4+ {[%clk 0:00:10.1]}
34... Kh7 {[%clk 0:00:12]} 35. Rxd4 {[%clk 0:00:10.8]} 35... Rxd4 {[%clk
0:00:13.4]} 36. Rxd4 {[%clk 0:00:11.6]} 36... Re7 {[%clk 0:00:14.6]} 37. Kg2
{[%clk 0:00:13]} 37... Kg7 {[%clk 0:00:12.6]} 38. Qg5 {[%clk 0:00:13.9]} 38...
Qf6 {[%clk 0:00:13.4]} 0-1

[Event "*** Titled Tuesday 3|2 Blitz (Early)"]
[Site "Chess.com"]
[Date "2016.12.06"]
[Round "5"]
[White "Fandorine"]
[Black "Harbuzi01"]
[Result "1/2-1/2"]
[WhiteElo "2631"]
[BlackElo "2697"]
[TimeControl "180+2"]
[EndTime "12:02:58 PST"]
[Termination "Game drawn - insufficient material"]

1. e4 {[%clk 0:03:02]} 1... e5 {[%clk 0:02:59.1]} 2. Nf3 {[%clk 0:03:02.8]} 2...
Nc6 {[%clk 0:02:58.9]} 3. Bb5 {[%clk 0:03:04]} 3... g6 {[%clk 0:03:00]} 4. d4
{[%clk 0:03:02.7]} 4... exd4 {[%clk 0:02:58.9]} 5. Bg5 {[%clk 0:03:04.1]} 5...
Be7 {[%clk 0:02:58.8]} 6. Bxe7 {[%clk 0:03:05.3]} 6... Qxe7 {[%clk 0:02:59.5]}
7. Bxc6 {[%clk 0:03:06]} 7... dxc6 {[%clk 0:02:58.7]} 8. Qxd4 {[%clk 0:03:07.6]}
8... Qf6 {[%clk 0:02:57.3]} 9. Nc3 {[%clk 0:02:57.1]} 9... Qxd4 {[%clk
0:02:56.4]} 10. Nxd4 {[%clk 0:02:59]} 10... Bd7 {[%clk 0:02:55.7]} 11. O-O
{[%clk 0:02:46.1]} 11... O-O-O {[%clk 0:02:50.6]} 12. f3 {[%clk 0:02:47]} 12...
Ne7 {[%clk 0:02:47.5]} 13. Rad1 {[%clk 0:02:43.6]} 13... f5 {[%clk 0:02:45.3]}
14. Rfe1 {[%clk 0:02:34.6]} 14... c5 {[%clk 0:02:43.9]} 15. Nb3 {[%clk
0:02:16.3]} 15... b6 {[%clk 0:02:41.2]} 16. Kf2 {[%clk 0:02:13]} 16... Kb7
{[%clk 0:02:32.6]} 17. Nd2 {[%clk 0:01:42.7]} 17... Bc6 {[%clk 0:02:24.9]} 18.
Nc4 {[%clk 0:01:36.7]} 18... fxe4 {[%clk 0:02:21.6]} 19. Rxd8 {[%clk 0:01:25.1]}
19... Rxd8 {[%clk 0:02:20.5]} 20. fxe4 {[%clk 0:01:25.9]} 20... Rf8+ {[%clk
0:02:13.5]} 21. Ke3 {[%clk 0:01:21.8]} 21... Nc8 {[%clk 0:02:10.1]} 22. Ne5
{[%clk 0:01:19.1]} 22... Nd6 {[%clk 0:02:09.6]} 23. Nxc6 {[%clk 0:01:06.8]}
23... Kxc6 {[%clk 0:02:08]} 24. b3 {[%clk 0:01:08.3]} 24... Re8 {[%clk
0:02:05.6]} 25. Kf4 {[%clk 0:01:05.5]} 25... Rf8+ {[%clk 0:02:03.5]} 26. Kg3
{[%clk 0:01:03.4]} 26... Re8 {[%clk 0:02:00.8]} 27. e5 {[%clk 0:01:00.2]} 27...
Nf5+ {[%clk 0:02:00]} 28. Kf4 {[%clk 0:00:57.6]} 28... Nd4 {[%clk 0:02:01]} 29.
Ne4 {[%clk 0:00:45]} 29... Rf8+ {[%clk 0:01:52.5]} 30. Nf6 {[%clk 0:00:43.9]}
30... Nxc2 {[%clk 0:01:51.4]} 31. Rf1 {[%clk 0:00:38.2]} 31... Nd4 {[%clk
0:01:50.3]} 32. Ke4 {[%clk 0:00:39.5]} 32... b5 {[%clk 0:01:45.1]} 33. h4 {[%clk
0:00:36]} 33... Nf5 {[%clk 0:01:43.9]} 34. Rf4 {[%clk 0:00:25.6]} 34... c4
{[%clk 0:01:40.5]} 35. bxc4 {[%clk 0:00:23.7]} 35... bxc4 {[%clk 0:01:42.4]} 36.
g4 {[%clk 0:00:20.4]} 36... Ne7 {[%clk 0:01:36.3]} 37. Kd4 {[%clk 0:00:17.2]}
37... Rb8 {[%clk 0:01:34.4]} 38. Kxc4 {[%clk 0:00:16.1]} 38... Rb2 {[%clk
0:01:35.2]} 39. Nxh7 {[%clk 0:00:15.4]} 39... Rxa2 {[%clk 0:01:36.3]} 40. Rf6+
{[%clk 0:00:16.1]} 40... Kb7 {[%clk 0:01:34.9]} 41. Kb3 {[%clk 0:00:12.9]} 41...
Re2 {[%clk 0:01:30.8]} 42. e6 {[%clk 0:00:06.9]} 42... Re3+ {[%clk 0:01:29.8]}
43. Kc2 {[%clk 0:00:07]} 43... Re4 {[%clk 0:01:31]} 44. Ng5 {[%clk 0:00:04.5]}
44... Rxg4 {[%clk 0:01:31.6]} 45. Rf7 {[%clk 0:00:06]} 45... Nc6 {[%clk
0:01:26.8]} 46. e7 {[%clk 0:00:07]} 46... Nxe7 {[%clk 0:01:26]} 47. Rxe7 {[%clk
0:00:08.9]} 47... Rxh4 {[%clk 0:01:26.7]} 48. Ne6 {[%clk 0:00:06.3]} 48... Rc4+
{[%clk 0:01:23.4]} 49. Kb3 {[%clk 0:00:05.8]} 49... Rc1 {[%clk 0:01:23.2]} 50.
Kb4 {[%clk 0:00:07.1]} 50... Kb6 {[%clk 0:01:21.9]} 51. Nf4 {[%clk 0:00:04.9]}
51... a5+ {[%clk 0:01:21]} 52. Kb3 {[%clk 0:00:06]} 52... a4+ {[%clk 0:01:19.3]}
53. Kb2 {[%clk 0:00:06.5]} 53... Rg1 {[%clk 0:01:15]} 54. Nd5+ {[%clk
0:00:06.2]} 54... Kc6 {[%clk 0:01:13.5]} 55. Nxc7 {[%clk 0:00:07]} 55... g5
{[%clk 0:01:14.2]} 56. Rg7 {[%clk 0:00:08.1]} 56... g4 {[%clk 0:01:14.8]} 57.
Ne6 {[%clk 0:00:09.2]} 57... Kd5 {[%clk 0:01:15]} 58. Nf4+ {[%clk 0:00:06.5]}
58... Ke4 {[%clk 0:01:15.9]} 59. Nh5 {[%clk 0:00:07.6]} 59... Kf3 {[%clk
0:01:15.3]} 60. Ka3 {[%clk 0:00:09]} 60... g3 {[%clk 0:01:14.3]} 61. Rxg3+
{[%clk 0:00:10.2]} 61... Rxg3 {[%clk 0:01:14.6]} 62. Nxg3 {[%clk 0:00:12.1]}
62... Kxg3 {[%clk 0:01:16.5]} 63. Kxa4 {[%clk 0:00:14]} 1/2-1/2